[Event "Marshall CC FIDE Premier March 2024"]
[Site "New York"]
[Date "2024.03.04"]
[Round "5.1"]
[White "Hebbar, Eshaan"]
[Black "Rama, Tejas"]
[Result "1/2-1/2"]
[ECO "D41"]
[WhiteElo "2187"]
[BlackElo "2221"]
[Annotator "RC"]
[PlyCount "46"]
[EventDate "2024.02.02"]
[EventType "swiss"]
[EventCountry "USA"]
[SourceTitle "playchess.com"]
[Source "ChessBase"]
[SourceQuality "1"]
[TimeControl "5400+30"]

1. d4 {[%emt 0:00:03]} Nf6 {[%emt 0:00:17]} 2. c4 {[%emt 0:00:08]} e6 {[%emt 0:00:05]} 3. Nf3 {[%emt 0:00:04]} d5 {[%emt 0:00:09]} 4. Nc3 {[%emt 0:00:08]} c5 {[%emt 0:00:14]} 5. cxd5 {[%emt 0:01:11]} Nxd5 {[%emt 0:00:04]} 6. e4 {[%emt 0:01:13]} Nxc3 {[%emt 0:00:05]} 7. bxc3 {[%emt 0:00:02]} cxd4 {[%emt 0:00:06]} 8. cxd4 {[%emt 0:00:11]} Bb4+ {[%emt 0:00:03]} 9. Bd2 {[%emt 0:00:21]} Bxd2+ {[%emt 0:00:04]} 10. Qxd2 {[%emt 0:00:07]} O-O {[%emt 0:00:04]} 11. Be2 {[%emt 0:01:11]} b6 {[%emt 0:00:06]} 12. O-O {[%emt 0:02:14]} Bb7 {[%emt 0:00:02]} 13. Qe3 {[%emt 0:03:15]} Nd7 {[%emt 0:00:17]} 14. Rac1 {[%emt 0:05:02]} Rc8 {[%emt 0:03:12]} 15. Rxc8 {[%emt 0:04:44]} Qxc8 {[%emt 0:00:04]} 16. Rc1 {[%emt 0:00:07]} Qb8 {[%emt 0:00:07]} 17. Nd2 {[%emt 0:00:57]} Rc8 {[%emt 0:07:14]} 18. Rc3 {[%emt 0:01:24]} Rxc3 {[%emt 0:08:35]} 19. Qxc3 {[%emt 0:00:04]} Qd6 {[%emt 0:02:13]} 20. f3 {[%emt 0:03:38]} Qc6 {[%emt 0:10:03]} 21. Qxc6 {[%emt 0:03:18]} Bxc6 {[%emt 0:00:03]} 22. Kf2 {[%emt 0:00:50]} Kf8 {[%emt 0:01:09]} 23. Ke3 {[%emt 0:00:07]} Ke7 {[%emt 1:07:44]} 1/2-1/2

[Event "Marshall CC FIDE Premier March 2024"]
[Site "New York"]
[Date "2024.03.04"]
[Round "5.2"]
[White "Bortnyk, Mykola"]
[Black "Li, Michael"]
[Result "0-1"]
[ECO "B22"]
[WhiteElo "2453"]
[BlackElo "2035"]
[Annotator "RC"]
[PlyCount "134"]
[EventDate "2024.02.02"]
[EventType "swiss"]
[EventCountry "USA"]
[SourceTitle "playchess.com"]
[Source "ChessBase"]
[SourceQuality "1"]
[TimeControl "5400+30"]

1. e4 {[%emt 0:00:03]} c5 {[%emt 0:00:12]} 2. c3 {[%emt 0:00:10]} e5 {[%emt 0:00:07]} 3. Nf3 {[%emt 0:00:04]} Nc6 {[%emt 0:00:05]} 4. Bb5 {[%emt 0:00:10]} a6 {[%emt 0:00:06]} 5. Ba4 {[%emt 0:00:07]} Bd6 {[%emt 0:02:28]} 6. O-O {[%emt 0:00:20]} b5 {[%emt 0:00:20]} 7. Bc2 {[%emt 0:00:24]} Nf6 {[%emt 0:05:05]} 8. d4 {[%emt 0:00:06]} cxd4 {[%emt 0:00:52]} 9. cxd4 {[%emt 0:00:02]} O-O {[%emt 0:01:11]} 10. dxe5 {[%emt 0:00:55]} Bxe5 {[%emt 0:00:07]} 11. Nxe5 {[%emt 0:00:03]} Nxe5 {[%emt 0:00:07]} 12. f4 {[%emt 0:00:18]} Qb6+ {[%emt 0:04:11]} 13. Kh1 {[%emt 0:00:07]} Neg4 {[%emt 0:02:52]} 14. Qe2 {[%emt 0:00:12]} Bb7 {[%emt 0:06:11]} 15. h3 {[%emt 0:03:26]} Nh6 {[%emt 0:03:24]} 16. e5 {[%emt 0:05:15]} Rfe8 {[%emt 0:03:31]} 17. Nc3 {[%emt 0:04:00]} Qc6 {[%emt 0:07:14]} 18. a3 {[%emt 0:02:30]} d6 {[%emt 0:12:12]} 19. Rf2 {[%emt 0:00:10]} Rad8 {[%emt 0:03:41]} 20. Bd2 {[%emt 0:06:45]} d5 {[%emt 0:08:27]} 21. f5 {[%emt 0:15:06]} d4 {[%emt 0:12:11]} 22. Bxh6 {[%emt 0:00:09]} dxc3 {[%emt 0:00:19]} 23. Bg5 {[%emt 0:01:34]} cxb2 {[%emt 0:02:08]} 24. Rb1 {[%emt 0:00:06]} Qc3 {[%emt 0:06:38]} 25. Bxf6 {[%emt 0:08:20]} gxf6 {[%emt 0:00:06]} 26. e6 {[%emt 0:00:04]} Kh8 {[%emt 0:05:21]} 27. Be4 {[%emt 0:02:47]} Bxe4 {[%emt 0:04:06]} 28. Qxe4 {[%emt 0:00:02]} fxe6 {[%emt 0:01:01]} 29. Rbxb2 {[%emt 0:01:58]} exf5 {[%emt 0:01:28]} 30. Qxf5 {[%emt 0:00:05]} Rd1+ {[%emt 0:01:45]} 31. Kh2 {[%emt 0:00:02]} Qe5+ {[%emt 0:01:45]} 32. Qxe5 {[%emt 0:01:02]} fxe5 {[%emt 0:00:06]} 33. Rf6 {[%emt 0:00:03]} Re1 {[%emt 0:02:05]} 34. Rxa6 {[%emt 0:10:23]} e4 {[%emt 0:00:05]} 35. Rf6 {[%emt 0:00:17]} e3 {[%emt 0:01:10]} 36. Kg3 {[%emt 0:00:02]} Ra1 {[%emt 0:01:54]} 37. Re2 {[%emt 0:00:05]} Rxa3 {[%emt 0:00:04]} 38. Rb6 {[%emt 0:00:06]} Rb3 {[%emt 0:01:00]} 39. Rb7 {[%emt 0:01:16]} Kg8 {[%emt 0:00:49]} 40. Kh4 {[%emt 0:00:27]} Re5 {[%emt 0:01:11]} 41. Kg4 {[%emt 0:01:46]} Re8 {[%emt 0:01:27]} 42. h4 {[%emt 0:00:10]} Rb4+ {[%emt 0:00:19]} 43. Kh3 {[%emt 0:00:27]} h5 {[%emt 0:00:45]} 44. Rd7 {[%emt 0:00:15]} Re5 {[%emt 0:00:11]} 45. g3 {[%emt 0:00:55]} Rbe4 {[%emt 0:00:45]} 46. Kg2 {[%emt 0:00:09]} Kf8 {[%emt 0:00:18]} 47. Kf3 {[%emt 0:00:04]} Rg4 {[%emt 0:00:28]} 48. Rb7 {[%emt 0:01:16]} b4 {[%emt 0:00:54]} 49. Rd7 {[%emt 0:00:38]} Rf5+ {[%emt 0:00:20]} 50. Kg2 {[%emt 0:00:05]} Re5 {[%emt 0:00:54]} 51. Rh7 {[%emt 0:00:46]} Kg8 {[%emt 0:00:25]} 52. Rb7 {[%emt 0:01:26]} Kf8 {[%emt 0:00:03]} 53. Rd7 {[%emt 0:00:25]} Rge4 {[%emt 0:00:33]} 54. Kf3 {[%emt 0:00:25]} Rg4 {[%emt 0:00:05]} 55. Rh7 {[%emt 0:00:45]} Kg8 {[%emt 0:00:42]} 56. Rc7 {[%emt 0:01:31]} Kf8 {[%emt 0:00:08]} 57. Re1 {[%emt 0:00:43]} Rf5+ {[%emt 0:00:36]} 58. Kg2 {[%emt 0:00:04]} Rf2+ {[%emt 0:00:23]} 59. Kh3 {[%emt 0:00:25]} Rf3 {[%emt 0:00:25]} 60. Rg1 {[%emt 0:01:21]} e2 {[%emt 0:00:29]} 61. Rcc1 {[%emt 0:01:24]} b3 {[%emt 0:00:40]} 62. Rce1 {[%emt 0:00:08]} b2 {[%emt 0:01:06]} 63. Kh2 {[%emt 0:00:13]} Rf2+ {[%emt 0:00:39]} 64. Kh3 {[%emt 0:00:07]} Rc4 {[%emt 0:00:19]} 65. Rb1 {[%emt 0:00:20]} Rc1 {[%emt 0:00:25]} 66. Rgxc1 {[%emt 0:01:13]} bxc1=Q {[%emt 0:00:12]} 67. Rxc1 {[%emt 0:00:02]} Rf1 {[%emt 0:00:10]} 0-1

[Event "Marshall CC FIDE Premier March 2024"]
[Site "New York"]
[Date "2024.03.04"]
[Round "5.3"]
[White "Zhu, Linxi"]
[Black "Zeltsan, Joseph"]
[Result "0-1"]
[ECO "B81"]
[WhiteElo "1981"]
[BlackElo "2419"]
[Annotator "RC"]
[PlyCount "64"]
[EventDate "2024.02.02"]
[EventType "swiss"]
[EventCountry "USA"]
[SourceTitle "playchess.com"]
[Source "ChessBase"]
[SourceQuality "1"]
[TimeControl "5400+30"]

1. e4 {[%emt 0:00:43]} c5 {[%emt 0:00:27]} 2. Nf3 {[%emt 0:00:39]} d6 {[%emt 0:00:06]} 3. d4 {[%emt 0:00:10]} cxd4 {[%emt 0:00:03]} 4. Nxd4 {[%emt 0:00:10]} Nf6 {[%emt 0:00:01]} 5. Nc3 {[%emt 0:00:08]} a6 {[%emt 0:00:02]} 6. h3 {[%emt 0:00:05]} e6 {[%emt 0:00:09]} 7. g4 {[%emt 0:00:34]} h6 {[%emt 0:00:05]} 8. Bg2 {[%emt 0:02:03]} Be7 {[%emt 1:33:37]} 9. h4 {[%emt 0:03:40]} Nc6 {[%emt 0:00:00]} 10. g5 {[%emt 0:06:44]} hxg5 {[%emt 0:00:00]} 11. hxg5 {[%emt 0:00:10]} Rxh1+ {[%emt 0:00:00]} 12. Bxh1 {[%emt 0:00:06]} Nd7 {[%emt 0:00:00]} 13. Nxc6 {[%emt 0:08:46]} bxc6 {[%emt 0:00:00]} 14. Qh5 {[%emt 0:01:01]} g6 {[%emt 0:00:00]} 15. Qh8+ {[%emt 0:06:58]} Nf8 {[%emt 0:00:00]} 16. Qh6 {[%emt 0:01:11]} e5 {[%emt 0:00:00]} 17. Be3 {[%emt 0:10:38]} Ne6 {[%emt 0:00:00]} 18. O-O-O {[%emt 0:00:53]} Bxg5 {[%emt 0:00:00]} 19. Qh8+ {[%emt 0:05:22]} Nf8 {[%emt 0:00:00]} 20. f4 {[%emt 0:00:12]} Bf6 {[%emt 0:00:00]} 21. Qg8 {[%emt 0:00:19]} Qe7 {[%emt 0:00:00]} 22. f5 {[%emt 0:00:46]} Bg5 {[%emt 0:00:00]} 23. Bxg5 {[%emt 0:00:36]} Qxg5+ {[%emt 0:00:00]} 24. Kb1 {[%emt 0:00:10]} Ke7 {[%emt 0:00:00]} 25. Bf3 {[%emt 0:05:16]} Qf6 {[%emt 0:00:00]} 26. Rh1 {[%emt 0:09:40]} Bb7 {[%emt 0:00:00]} 27. Be2 {[%emt 0:01:39]} d5 {[%emt 0:00:00]} 28. exd5 {[%emt 0:01:56]} cxd5 {[%emt 0:00:00]} 29. Bf3 {[%emt 0:02:49]} e4 {[%emt 0:00:00]} 30. Bg2 {[%emt 0:00:09]} Nd7 {[%emt 0:00:00]} 31. Qh7 {[%emt 0:00:13]} gxf5 {[%emt 0:00:00]} 32. Rd1 {[%emt 0:02:02]} Rh8 {[%emt 0:00:00]} 0-1

[Event "Marshall CC FIDE Premier March 2024"]
[Site "New York"]
[Date "2024.03.04"]
[Round "5.4"]
[White "Dong, Kyle Qiyu"]
[Black "Peterson, Ryan H"]
[Result "0-1"]
[ECO "A34"]
[WhiteElo "1966"]
[BlackElo "2025"]
[Annotator "RC"]
[PlyCount "106"]
[EventDate "2024.02.02"]
[EventType "swiss"]
[EventCountry "USA"]
[SourceTitle "playchess.com"]
[Source "ChessBase"]
[SourceQuality "1"]
[TimeControl "5400+30"]

1. Nf3 {[%emt 0:00:06]} Nf6 {[%emt 0:01:48]} 2. c4 {[%emt 0:00:06]} c5 {[%emt 0:00:14]} 3. Nc3 {[%emt 0:00:28]} Nc6 {[%emt 0:00:48]} 4. g3 {[%emt 0:00:04]} d5 {[%emt 0:00:19]} 5. cxd5 {[%emt 0:00:10]} Nxd5 {[%emt 0:00:03]} 6. Bg2 {[%emt 0:00:01]} Nc7 {[%emt 0:02:20]} 7. d3 {[%emt 0:02:57]} e5 {[%emt 0:00:30]} 8. O-O {[%emt 0:00:55]} Be7 {[%emt 0:00:12]} 9. b3 {[%emt 0:01:00]} O-O {[%emt 0:00:27]} 10. Bb2 {[%emt 0:00:05]} Re8 {[%emt 0:03:55]} 11. Rc1 {[%emt 0:00:28]} Bf8 {[%emt 0:09:29]} 12. a3 {[%emt 0:07:24]} Nd4 {[%emt 0:05:43]} 13. Na4 {[%emt 0:04:26]} Na6 {[%emt 0:02:45]} 14. Re1 {[%emt 0:09:58]} Rb8 {[%emt 0:02:06]} 15. Nc3 {[%emt 0:06:35]} Be6 {[%emt 0:04:05]} 16. Nxd4 {[%emt 0:01:33]} exd4 {[%emt 0:01:04]} 17. Ne4 {[%emt 0:00:42]} b5 {[%emt 0:04:28]} 18. Qc2 {[%emt 0:05:57]} h6 {[%emt 0:04:23]} 19. e3 {[%emt 0:02:28]} Rc8 {[%emt 0:08:58]} 20. Nd2 {[%emt 0:08:19]} Qb6 {[%emt 0:04:23]} 21. Qb1 {[%emt 0:07:10]} dxe3 {[%emt 0:01:19]} 22. fxe3 {[%emt 0:02:20]} Rcd8 {[%emt 0:01:09]} 23. d4 {[%emt 0:02:49]} Nb8 {[%emt 0:07:38]} 24. Kh1 {[%emt 0:06:01]} Qa5 {[%emt 0:02:40]} 25. Ne4 {[%emt 0:09:16]} cxd4 {[%emt 0:01:15]} 26. b4 {[%emt 0:01:51]} Qa6 {[%emt 0:02:01]} 27. exd4 {[%emt 0:00:59]} Bd5 {[%emt 0:01:57]} 28. Kg1 {[%emt 0:01:44]} Qb7 {[%emt 0:01:17]} 29. Qd3 {[%emt 0:05:20]} Nd7 {[%emt 0:04:01]} 30. Bf3 {[%emt 0:02:04]} a6 {[%emt 0:04:47]} 31. Nd2 {[%emt 0:02:21]} Nb6 {[%emt 0:01:43]} 32. Kf2 {[%emt 0:02:17]} Rxe1 {[%emt 0:06:59]} 33. Rxe1 {[%emt 0:00:05]} Bxf3 {[%emt 0:01:21]} 34. Qxf3 {[%emt 0:00:01]} Qc8 {[%emt 0:01:25]} 35. Rc1 {[%emt 0:01:00]} Qe6 {[%emt 0:01:26]} 36. Rc6 {[%emt 0:01:32]} Rd6 {[%emt 0:01:48]} 37. Rc1 {[%emt 0:03:40]} Na4 {[%emt 0:01:02]} 38. Ba1 {[%emt 0:00:20]} Qa2 {[%emt 0:00:22]} 39. Qe3 {[%emt 0:00:47]} Re6 {[%emt 0:01:16]} 40. Qd3 {[%emt 0:00:12]} Nb6 {[%emt 0:00:47]} 41. Rd1 {[%emt 0:01:24]} Nd5 {[%emt 0:02:02]} 42. Qb3 {[%emt 0:00:44]} Rf6+ {[%emt 0:00:42]} 43. Ke2 {[%emt 0:00:09]} Re6+ {[%emt 0:00:41]} 44. Kf2 {[%emt 0:00:07]} Qxb3 {[%emt 0:00:31]} 45. Nxb3 {[%emt 0:00:02]} Re3 {[%emt 0:00:15]} 46. Rb1 {[%emt 0:00:32]} h5 {[%emt 0:00:30]} 47. Rb2 {[%emt 0:02:19]} Bd6 {[%emt 0:00:34]} 48. Rb1 {[%emt 0:00:16]} g5 {[%emt 0:00:20]} 49. Nc5 {[%emt 0:00:56]} Rxa3 {[%emt 0:00:17]} 50. Ne4 {[%emt 0:00:04]} Be7 {[%emt 0:00:56]} 51. Re1 {[%emt 0:00:24]} Bxb4 {[%emt 0:00:21]} 52. Rc1 {[%emt 0:00:11]} Ra2+ {[%emt 0:00:14]} 53. Kf3 {[%emt 0:00:20]} g4# {[%emt 0:00:07]} 0-1

[Event "Marshall CC FIDE Premier March 2024"]
[Site "New York"]
[Date "2024.03.04"]
[Round "5.5"]
[White "Hoffman, Luc"]
[Black "Johnston, Daniel"]
[Result "1-0"]
[ECO "D36"]
[WhiteElo "1974"]
[BlackElo "2044"]
[Annotator "RC"]
[PlyCount "65"]
[EventDate "2024.02.02"]
[EventType "swiss"]
[EventCountry "USA"]
[SourceTitle "playchess.com"]
[Source "ChessBase"]
[SourceQuality "1"]
[TimeControl "5400+30"]

1. d4 {[%emt 0:00:36]} Nf6 {[%emt 0:00:06]} 2. Bg5 {[%emt 0:00:18]} d5 {[%emt 0:00:54]} 3. Nf3 {[%emt 0:02:08]} e6 {[%emt 0:06:15]} 4. c4 {[%emt 0:01:08]} Be7 {[%emt 0:01:00]} 5. Nc3 {[%emt 0:00:19]} O-O {[%emt 0:00:32]} 6. e3 {[%emt 0:00:13]} Nbd7 {[%emt 0:02:41]} 7. cxd5 {[%emt 0:01:06]} exd5 {[%emt 0:00:11]} 8. Qc2 {[%emt 0:01:33]} c6 {[%emt 0:01:38]} 9. Bd3 {[%emt 0:00:54]} h6 {[%emt 0:04:04]} 10. Bf4 {[%emt 0:07:25]} Re8 {[%emt 0:06:19]} 11. O-O {[%emt 0:05:37]} Nf8 {[%emt 0:02:31]} 12. h3 {[%emt 0:01:20]} Ne6 {[%emt 0:06:03]} 13. Bh2 {[%emt 0:02:23]} a5 {[%emt 0:01:17]} 14. Ne5 {[%emt 0:03:21]} Bd6 {[%emt 0:03:23]} 15. Rac1 {[%emt 0:01:24]} Nf8 {[%emt 0:03:02]} 16. f4 {[%emt 0:05:46]} N6d7 {[%emt 0:05:43]} 17. Qf2 {[%emt 0:04:48]} Qe7 {[%emt 0:03:04]} 18. Rce1 {[%emt 0:01:26]} Bc7 {[%emt 0:04:45]} 19. Kh1 {[%emt 0:04:03]} Nxe5 {[%emt 0:03:46]} 20. fxe5 {[%emt 0:00:52]} b6 {[%emt 0:00:50]} 21. Ne2 {[%emt 0:02:18]} Ba6 {[%emt 0:00:43]} 22. Bxa6 {[%emt 0:02:23]} Rxa6 {[%emt 0:00:06]} 23. Nf4 {[%emt 0:00:53]} g6 {[%emt 0:04:41]} 24. Qc2 {[%emt 0:01:19]} b5 {[%emt 0:04:54]} 25. Nd3 {[%emt 0:00:32]} Ne6 {[%emt 0:02:05]} 26. Rf6 {[%emt 0:00:35]} Bd8 {[%emt 0:02:21]} 27. Ref1 {[%emt 0:03:46]} Rf8 {[%emt 0:02:20]} 28. Nf4 {[%emt 0:02:35]} Nxf4 {[%emt 0:03:14]} 29. Bxf4 {[%emt 0:05:53]} Qb7 {[%emt 0:03:37]} 30. Bxh6 {[%emt 0:00:35]} Bxf6 {[%emt 0:00:27]} 31. Rxf6 {[%emt 0:00:07]} Rc8 {[%emt 0:02:47]} 32. e6 {[%emt 0:00:27]} Kh7 {[%emt 0:01:12]} 33. exf7 {[%emt 0:00:21]} 1-0